[Event "XII Sabadell Open 2019"]
[Site "Sabadell"]
[Date "2019.09.04"]
[Round "3.10"]
[White "Esplugas Esteve, Vicenc"]
[Black "Rivera, Ingris"]
[Result "1/2-1/2"]
[ECO "E91"]
[WhiteElo "2372"]
[BlackElo "2236"]
[Annotator "ChessBase"]
[PlyCount "109"]
[EventDate "2019.09.01"]
[EventCountry "ESP"]
[SourceTitle "playchess.com"]
[Source "ChessBase"]
[SourceQuality "1"]
[TimeControl "5400+30"]

1. d4 {[%emt 0:00:00]} Nf6 {[%emt 0:02:34]} 2. c4 {[%emt 0:00:00]} g6 {[%emt 0:00:16]} 3. Nc3 {[%emt 0:00:00]} Bg7 {[%emt 0:00:10]} 4. e4 {[%emt 0:00:00]} d6 {[%emt 0:00:08]} 5. Nf3 {[%emt 0:00:00]} O-O {[%emt 0:00:15]} 6. Be2 {[%emt 0:00:00]} Bg4 {[%emt 0:00:13]} 7. Be3 {[%emt 0:00:07]} Nfd7 {[%emt 0:00:20]} 8. h4 {[%emt 0:00:07]} e5 {[%emt 0:00:40]} 9. d5 {[%emt 0:01:51]} a5 {[%emt 0:01:46]} 10. a3 {[%emt 0:12:40]} Na6 {[%emt 0:01:04]} 11. Rb1 {[%emt 0:01:12]} Qe7 {[%emt 0:10:03]} 12. Ng5 {[%emt 0:13:24]} Bxe2 {[%emt 0:00:57]} 13. Qxe2 {[%emt 0:00:19]} h6 {[%emt 0:02:22]} 14. Nf3 {[%emt 0:01:18]} f5 {[%emt 0:00:39]} 15. h5 {[%emt 0:00:44]} g5 {[%emt 0:01:28]} 16. exf5 {[%emt 0:01:31]} Rxf5 {[%emt 0:00:50]} 17. Ne4 {[%emt 0:01:09]} Nac5 {[%emt 0:03:54]} 18. Nfd2 {[%emt 0:03:35]} b6 {[%emt 0:05:31]} 19. O-O {[%emt 0:03:14]} Raf8 {[%emt 0:05:04]} 20. b4 {[%emt 0:06:52]} axb4 {[%emt 0:01:24]} 21. axb4 {[%emt 0:00:00]} Nxe4 {[%emt 0:00:37]} 22. Nxe4 {[%emt 0:00:00]} Qf7 {[%emt 0:04:41]} 23. Ra1 {[%emt 0:06:16]} Rf4 {[%emt 0:00:39]} 24. Bxf4 {[%emt 0:04:22]} exf4 {[%emt 0:00:15]} 25. Ra7 {[%emt 0:15:57]} Ne5 {[%emt 0:02:31]} 26. f3 {[%emt 0:03:35]} Qxh5 {[%emt 0:01:58]} 27. Nf2 {[%emt 0:05:11]} g4 {[%emt 0:07:36]} 28. fxg4 {[%emt 0:00:00]} Qh4 {[%emt 0:00:56]} 29. Rxc7 {[%emt 0:00:07]} f3 {[%emt 0:00:27]} 30. Qb2 {[%emt 0:08:50]} Nf7 {[%emt 0:04:36]} 31. Qc2 {[%emt 0:00:00]} Qg3 {[%emt 0:00:22]} 32. Nh3 {[%emt 0:00:55]} Ne5 {[%emt 0:06:56]} 33. Qf2 {[%emt 0:03:18]} Qxg4 {[%emt 0:01:28]} 34. Kh2 {[%emt 0:02:36]} Qe4 {[%emt 0:13:10]} 35. Kg1 {[%emt 0:05:58]} Ng4 {[%emt 0:03:02]} 36. gxf3 {[%emt 0:00:42]} Nxf2 {[%emt 0:03:02]} 37. fxe4 {[%emt 0:00:04]} Nxh3+ {[%emt 0:00:09]} 38. Kg2 {[%emt 0:00:04]} Nf4+ {[%emt 0:06:16]} 39. Kh1 {[%emt 0:00:07]} Be5 {[%emt 0:01:07]} 40. Rb7 {[%emt 0:02:17]} Rc8 {[%emt 0:01:10]} 41. Rxb6 {[%emt 0:00:55]} Ne2 {[%emt 0:03:22]} 42. Re1 {[%emt 0:00:49]} Ng3+ {[%emt 0:00:24]} 43. Kg2 {[%emt 0:00:05]} Rxc4 {[%emt 0:00:08]} 44. Rb7 {[%emt 0:00:33]} Nxe4 {[%emt 0:00:43]} 45. b5 {[%emt 0:03:35]} Nc3 {[%emt 0:03:33]} 46. Ra1 {[%emt 0:00:00]} Na4 {[%emt 0:02:31]} 47. Rh1 {[%emt 0:00:00]} Bg7 {[%emt 0:00:46]} 48. Kf3 {[%emt 0:00:00]} Rc3+ {[%emt 0:00:29]} 49. Kg4 {[%emt 0:00:00]} Nc5 {[%emt 0:00:19]} 50. Rc7 {[%emt 0:00:00]} Rd3 {[%emt 0:00:35]} 51. b6 {[%emt 0:00:31]} Rxd5 {[%emt 0:00:24]} 52. b7 {[%emt 0:00:16]} Nxb7 {[%emt 0:00:09]} 53. Rxb7 {[%emt 0:00:07]} Rg5+ {[%emt 0:00:12]} 54. Kf3 {[%emt 0:00:17]} Kh7 {[%emt 0:00:39]} 55. Rd1 {[%emt 0:00:15]} 1/2-1/2

[Event "XII Sabadell Open 2019"]
[Site "Sabadell"]
[Date "2019.09.04"]
[Round "3.13"]
[White "Fernandez Aguilar, Francisco"]
[Black "Prats Rodriguez, Juan Bosco"]
[Result "1-0"]
[ECO "A11"]
[WhiteElo "2040"]
[BlackElo "1936"]
[Annotator "NA"]
[PlyCount "135"]
[EventDate "2019.09.01"]
[EventCountry "ESP"]
[SourceTitle "playchess.com"]
[Source "ChessBase"]
[SourceQuality "1"]
[TimeControl "5400+30"]

1. Nf3 {[%emt 0:00:16]} d5 {[%emt 0:00:00]} 2. g3 {[%emt 0:00:00]} Nf6 {[%emt 0:00:00]} 3. Bg2 {[%emt 0:00:00]} Bf5 {[%emt 0:00:07]} 4. O-O {[%emt 0:00:00]} e6 {[%emt 0:00:04]} 5. c4 {[%emt 0:00:00]} c6 {[%emt 0:00:29]} 6. cxd5 {[%emt 0:00:00]} exd5 {[%emt 0:00:12]} 7. d3 {[%emt 0:04:37]} Be7 {[%emt 0:05:41]} 8. Qb3 {[%emt 0:00:00]} Na6 {[%emt 0:17:41]} 9. Qxb7 {[%emt 0:11:27]} Nc5 {[%emt 0:00:00]} 10. Qb4 {[%emt 0:11:05]} Nxd3 {[%emt 0:09:15]} 11. Qa4 {[%emt 0:10:36]} Nc5 {[%emt 0:00:00]} 12. Qd1 {[%emt 0:02:28]} O-O {[%emt 0:00:00]} 13. Nd4 {[%emt 0:03:25]} Bd7 {[%emt 0:01:23]} 14. Qc2 {[%emt 0:03:51]} Rc8 {[%emt 0:00:00]} 15. Nf5 {[%emt 0:00:33]} Nce4 {[%emt 0:00:00]} 16. Nxe7+ {[%emt 0:00:15]} Qxe7 {[%emt 0:09:32]} 17. Nc3 {[%emt 0:21:09]} Bf5 {[%emt 0:00:00]} 18. Nxe4 {[%emt 0:00:17]} Nxe4 {[%emt 0:00:00]} 19. Qa4 {[%emt 0:00:42]} Rfd8 {[%emt 0:14:25]} 20. Qa5 {[%emt 0:06:31]} Rb8 {[%emt 0:00:00]} 21. b3 {[%emt 0:06:53]} Rb5 {[%emt 0:00:00]} 22. Ba3 {[%emt 0:05:17]} Qd7 {[%emt 0:00:42]} 23. Qe1 {[%emt 0:03:49]} Qb7 {[%emt 0:05:31]} 24. f3 {[%emt 0:09:53]} Qb6+ {[%emt 0:09:01]} 25. Kh1 {[%emt 0:00:43]} Nc5 {[%emt 0:02:50]} 26. Qc3 {[%emt 0:06:11]} d4 {[%emt 0:00:39]} 27. Qd2 {[%emt 0:00:00]} Ne6 {[%emt 0:03:57]} 28. g4 {[%emt 0:00:00]} Bg6 {[%emt 0:00:17]} 29. f4 {[%emt 0:00:00]} f5 {[%emt 0:00:56]} 30. Qc2 {[%emt 0:04:33]} d3 {[%emt 0:05:16]} 31. exd3 {[%emt 0:00:00]} fxg4 {[%emt 0:00:16]} 32. Qxc6 {[%emt 0:01:24]} Bxd3 {[%emt 0:01:24]} 33. Rfe1 {[%emt 0:00:00]} Nf8 {[%emt 0:03:34]} 34. Qxb6 {[%emt 0:02:30]} Rxb6 {[%emt 0:02:52]} 35. Rad1 {[%emt 0:00:00]} Re6 {[%emt 0:01:29]} 36. Re5 {[%emt 0:00:00]} Rxe5 {[%emt 0:01:09]} 37. fxe5 {[%emt 0:00:00]} Ne6 {[%emt 0:00:42]} 38. Kg1 {[%emt 0:00:00]} Kf7 {[%emt 0:01:24]} 39. Bd6 {[%emt 0:00:00]} Be2 {[%emt 0:01:07]} 40. Rd2 {[%emt 0:00:00]} Nf4 {[%emt 0:01:30]} 41. Be4 {[%emt 0:00:00]} Bf3 {[%emt 0:02:23]} 42. Bxf3 {[%emt 0:00:00]} gxf3 {[%emt 0:00:07]} 43. Kf2 {[%emt 0:00:00]} Ng6 {[%emt 0:00:26]} 44. Rd4 {[%emt 0:00:00]} Rc8 {[%emt 0:01:12]} 45. Kxf3 {[%emt 0:00:00]} Rc2 {[%emt 0:00:48]} 46. Ra4 {[%emt 0:00:00]} Ke6 {[%emt 0:01:16]} 47. h4 {[%emt 0:00:00]} Nxe5+ {[%emt 0:00:37]} 48. Bxe5 {[%emt 0:00:00]} Kxe5 {[%emt 0:00:00]} 49. Rxa7 {[%emt 0:00:00]} h5 {[%emt 0:01:05]} 50. Rxg7 {[%emt 0:00:00]} Rxa2 {[%emt 0:00:44]} 51. Rg5+ {[%emt 0:00:00]} Kd6 {[%emt 0:00:49]} 52. Rxh5 {[%emt 0:00:00]} Ra3 {[%emt 0:00:30]} 53. Rb5 {[%emt 0:00:00]} Kc6 {[%emt 0:00:13]} 54. Rb4 {[%emt 0:00:00]} Kc5 {[%emt 0:00:38]} 55. Rc4+ {[%emt 0:00:00]} Kd5 {[%emt 0:00:07]} 56. Rc3 {[%emt 0:00:00]} Ke5 {[%emt 0:00:10]} 57. Re3+ {[%emt 0:00:00]} Kf5 {[%emt 0:00:08]} 58. b4 {[%emt 0:00:00]} Ra1 {[%emt 0:00:39]} 59. Rb3 {[%emt 0:00:00]} Rh1 {[%emt 0:00:21]} 60. Kg3 {[%emt 0:00:00]} Rg1+ {[%emt 0:00:18]} 61. Kh2 {[%emt 0:00:00]} Rg6 {[%emt 0:00:37]} 62. b5 {[%emt 0:00:00]} Rb6 {[%emt 0:00:04]} 63. Rb4 {[%emt 0:00:05]} Kg6 {[%emt 0:00:11]} 64. Kg3 {[%emt 0:00:13]} Kf5 {[%emt 0:00:30]} 65. Kf3 {[%emt 0:00:07]} Kg6 {[%emt 0:00:26]} 66. Ke4 {[%emt 0:00:26]} Kf6 {[%emt 0:00:12]} 67. Kd5 {[%emt 0:00:06]} Ke7 {[%emt 0:00:12]} 68. Kc5 {[%emt 0:00:14]} 1-0

[Event "XII Sabadell Open 2019"]
[Site "Sabadell"]
[Date "2019.09.04"]
[Round "3.14"]
[White "Ruiz Bravo, Alfonso"]
[Black "Bedoya Rosales, Luis"]
[Result "0-1"]
[ECO "B48"]
[WhiteElo "1947"]
[BlackElo "1918"]
[Annotator "NA"]
[PlyCount "80"]
[EventDate "2019.09.01"]
[EventCountry "ESP"]
[SourceTitle "playchess.com"]
[Source "ChessBase"]
[SourceQuality "1"]
[TimeControl "5400+30"]

1. e4 {[%emt 0:04:13]} c5 {[%emt 0:00:15]} 2. Nf3 {[%emt 0:00:17]} e6 {[%emt 0:00:14]} 3. d4 {[%emt 0:00:25]} cxd4 {[%emt 0:00:07]} 4. Nxd4 {[%emt 0:00:11]} Nc6 {[%emt 0:00:42]} 5. Be3 {[%emt 0:01:27]} Nf6 {[%emt 0:05:40]} 6. Nc3 {[%emt 0:01:17]} Qc7 {[%emt 0:01:46]} 7. a3 {[%emt 0:00:45]} a6 {[%emt 0:00:22]} 8. Be2 {[%emt 0:00:43]} Be7 {[%emt 0:03:32]} 9. O-O {[%emt 0:01:51]} O-O {[%emt 0:02:38]} 10. f4 {[%emt 0:03:11]} d6 {[%emt 0:00:25]} 11. Kh1 {[%emt 0:38:20]} Bd7 {[%emt 0:02:59]} 12. Qe1 {[%emt 0:08:38]} Rfe8 {[%emt 0:07:45]} 13. Qg3 {[%emt 0:04:19]} Bf8 {[%emt 0:05:26]} 14. Nf3 {[%emt 0:26:50]} d5 {[%emt 0:02:55]} 15. e5 {[%emt 0:05:40]} Ne4 {[%emt 0:01:01]} 16. Nxe4 {[%emt 0:00:19]} dxe4 {[%emt 0:00:26]} 17. Ng5 {[%emt 0:00:08]} Ne7 {[%emt 0:07:01]} 18. Qh3 {[%emt 0:07:32]} h6 {[%emt 0:00:44]} 19. Nxe4 {[%emt 0:03:26]} Qxc2 {[%emt 0:06:15]} 20. Nc5 {[%emt 0:03:58]} Qxe2 {[%emt 0:00:46]} 21. Nxd7 {[%emt 0:02:08]} Nf5 {[%emt 0:04:04]} 22. Rae1 {[%emt 0:01:12]} Qb5 {[%emt 0:02:44]} 23. Nxf8 {[%emt 0:00:59]} Rxf8 {[%emt 0:00:23]} 24. g4 {[%emt 0:03:05]} Nxe3 {[%emt 0:06:14]} 25. Qxe3 {[%emt 0:00:05]} Rac8 {[%emt 0:03:39]} 26. b4 {[%emt 0:04:48]} Qd5+ {[%emt 0:01:04]} 27. Kg1 {[%emt 0:03:13]} Rc2 {[%emt 0:00:11]} 28. Rf2 {[%emt 0:01:09]} Rfc8 {[%emt 0:00:26]} 29. Rxc2 {[%emt 0:01:07]} Rxc2 {[%emt 0:00:16]} 30. Re2 {[%emt 0:01:33]} Qd1+ {[%emt 0:01:26]} 31. Kf2 {[%emt 0:00:12]} Rxe2+ {[%emt 0:00:29]} 32. Qxe2 {[%emt 0:00:14]} Qh1 {[%emt 0:00:33]} 33. Ke3 {[%emt 0:00:48]} Qc1+ {[%emt 0:00:15]} 34. Ke4 {[%emt 0:00:39]} Qxa3 {[%emt 0:00:23]} 35. Qc4 {[%emt 0:00:21]} Qb2 {[%emt 0:00:56]} 36. Ke3 {[%emt 0:00:36]} Qxh2 {[%emt 0:00:29]} 37. Qc8+ {[%emt 0:00:20]} Kh7 {[%emt 0:00:03]} 38. Qxb7 {[%emt 0:00:28]} Qg3+ {[%emt 0:00:14]} 39. Kd4 {[%emt 0:00:26]} Qxf4+ {[%emt 0:00:25]} 40. Kd3 {[%emt 0:00:29]} Qxg4 {[%emt 0:00:37]} 0-1

[Event "XII Sabadell Open 2019"]
[Site "Sabadell"]
[Date "2019.09.04"]
[Round "3.15"]
[White "Abreu Flores, Daniel"]
[Black "Martinez Ferrer, Albert"]
[Result "1-0"]
[ECO "C45"]
[WhiteElo "1905"]
[BlackElo "1780"]
[Annotator "NA RC"]
[PlyCount "113"]
[EventDate "2019.09.01"]
[EventCountry "ESP"]
[SourceTitle "playchess.com"]
[Source "ChessBase"]
[SourceQuality "1"]
[TimeControl "5400+30"]

1. e4 {[%emt 0:00:12]} e5 {[%emt 0:00:24]} 2. Nf3 {[%emt 0:00:00]} Nc6 {[%emt 0:00:20]} 3. d4 {[%emt 0:02:59]} exd4 {[%emt 0:08:52]} 4. Nxd4 {[%emt 0:00:00]} Nxd4 {[%emt 0:03:42]} 5. Qxd4 {[%emt 0:00:00]} Qf6 {[%emt 0:00:53]} 6. e5 {[%emt 0:00:00]} Qb6 {[%emt 0:00:33]} 7. Qf4 {[%emt 0:00:00]} Qb4+ {[%emt 0:03:01]} 8. Nc3 {[%emt 0:00:00]} Qxf4 {[%emt 0:00:16]} 9. Bxf4 {[%emt 0:00:00]} Bb4 {[%emt 0:00:10]} 10. Bd2 {[%emt 0:01:04]} Bxc3 {[%emt 0:01:00]} 11. Bxc3 {[%emt 0:02:17]} Ne7 {[%emt 0:02:34]} 12. Bc4 {[%emt 0:10:56]} O-O {[%emt 0:00:29]} 13. O-O-O {[%emt 0:00:00]} Ng6 {[%emt 0:04:46]} 14. g3 {[%emt 0:00:00]} b6 {[%emt 0:10:46]} 15. Bd5 {[%emt 0:00:00]} Rb8 {[%emt 0:03:18]} 16. Rhe1 {[%emt 0:00:00]} Ba6 {[%emt 0:00:00]} 17. f4 {[%emt 0:02:22]} Rbd8 {[%emt 0:03:08]} 18. Bg2 {[%emt 0:00:00]} Bc4 {[%emt 0:00:34]} 19. Bh3 {[%emt 0:00:00]} Bb5 {[%emt 0:00:18]} 20. Rd2 {[%emt 0:03:17]} Rfe8 {[%emt 0:01:40]} 21. Red1 {[%emt 0:00:00]} Nf8 {[%emt 0:01:53]} 22. f5 {[%emt 0:10:45]} a5 {[%emt 0:05:37]} 23. Bg2 {[%emt 0:00:21]} h6 {[%emt 0:05:00]} 24. b3 {[%emt 0:01:10]} a4 {[%emt 0:00:37]} 25. Bb2 {[%emt 0:00:10]} axb3 {[%emt 0:01:48]} 26. axb3 {[%emt 0:02:13]} Rc8 {[%emt 0:09:54]} 27. c4 {[%emt 0:07:06]} Bc6 {[%emt 0:00:00]} 28. Bd5 {[%emt 0:11:49]} Ra8 {[%emt 0:03:30]} 29. g4 {[%emt 0:00:00]} Bxd5 {[%emt 0:05:55]} 30. Rxd5 {[%emt 0:01:13]} Re7 {[%emt 0:00:00]} 31. h4 {[%emt 0:01:39]} Ra7 {[%emt 0:04:35]} 32. Kb1 {[%emt 0:07:38]} Ra8 {[%emt 0:01:55]} 33. Rg1 {[%emt 0:00:00]} Ree8 {[%emt 0:05:29]} 34. h5 {[%emt 0:06:52]} Re7 {[%emt 0:05:58]} 35. g5 {[%emt 0:00:00]} hxg5 {[%emt 0:01:38]} 36. Rxg5 {[%emt 0:00:00]} g6 {[%emt 0:03:24]} 37. hxg6 {[%emt 0:00:00]} fxg6 {[%emt 0:00:06]} 38. Rd2 {[%emt 0:00:00]} Rh7 {[%emt 0:02:43]} 39. e6 {[%emt 0:04:34]} dxe6 {[%emt 0:00:00]} 40. fxg6 {[%emt 0:00:48]} Rh6 {[%emt 0:02:40]} 41. Rf2 {[%emt 0:02:04]} Nxg6 {[%emt 0:00:00]} 42. Rf6 {[%emt 0:01:02]} Kh7 {[%emt 0:00:00]} 43. Rf7+ {[%emt 0:00:08]} Kg8 {[%emt 0:00:17]} 44. Rg7+ {[%emt 0:00:10]} Kf8 {[%emt 0:00:09]} 45. R5xg6 {[%emt 0:00:28]} Rh1+ {[%emt 0:00:28]} 46. Rg1 {[%emt 0:00:51]} Rxg1+ {[%emt 0:00:30]} 47. Rxg1 {[%emt 0:00:02]} Ke7 {[%emt 0:00:20]} 48. Bc3 {[%emt 0:01:09]} Rf8 {[%emt 0:00:59]} 49. Be5 {[%emt 0:02:05]} c6 {[%emt 0:02:16]} 50. Rg7+ {[%emt 0:00:11]} Rf7 {[%emt 0:00:00]} 51. Rxf7+ {[%emt 0:04:17]} Kxf7 {[%emt 0:00:00]} 52. Kc2 {[%emt 0:00:15]} Ke7 {[%emt 0:00:49]} 53. b4 {[%emt 0:00:01]} b5 {[%emt 0:00:22]} 54. c5 {[%emt 0:01:04]} Kf7 {[%emt 0:00:16]} 55. Kd3 {[%emt 0:00:01]} Kg6 {[%emt 0:00:22]} 56. Ke4 {[%emt 0:00:01]} Kf7 {[%emt 0:00:43]} 57. Bc7 {[%emt 0:00:30]} 1-0

[Event "XII Sabadell Open 2019"]
[Site "Sabadell"]
[Date "2019.09.04"]
[Round "3.16"]
[White "Costa Trave, Jaume"]
[Black "Borrellas Comellas, Josep"]
[Result "0-1"]
[ECO "C20"]
[WhiteElo "1769"]
[BlackElo "1943"]
[Annotator "NA"]
[PlyCount "72"]
[EventDate "2019.09.01"]
[EventCountry "ESP"]
[SourceTitle "playchess.com"]
[Source "ChessBase"]
[SourceQuality "1"]
[TimeControl "5400+30"]

1. f4 {[%emt 0:00:54]} f5 {[%emt 0:00:46]} 2. e4 {[%emt 0:00:11]} d6 {[%emt 0:01:13]} 3. Nc3 {[%emt 0:00:37]} Nf6 {[%emt 0:00:28]} 4. d3 {[%emt 0:00:19]} Nc6 {[%emt 0:01:58]} 5. Nf3 e5 {[%emt 0:02:28]} 6. fxe5 {[%emt 0:00:17]} dxe5 {[%emt 0:00:49]} 7. Bg5 {[%emt 0:00:28]} Be7 {[%emt 0:01:57]} 8. Bxf6 {[%emt 0:01:13]} Bxf6 {[%emt 0:00:25]} 9. Qd2 {[%emt 0:02:25]} Be6 {[%emt 0:00:24]} 10. O-O-O {[%emt 0:00:26]} Nd4 {[%emt 0:01:02]} 11. Kb1 {[%emt 0:04:02]} Nxf3 {[%emt 0:03:59]} 12. gxf3 {[%emt 0:00:08]} f4 {[%emt 0:02:43]} 13. Rg1 {[%emt 0:00:12]} Qd7 {[%emt 0:01:46]} 14. Ne2 {[%emt 0:00:16]} c5 {[%emt 0:04:09]} 15. c4 {[%emt 0:00:36]} O-O-O {[%emt 0:02:03]} 16. Qc2 {[%emt 0:00:10]} Kb8 {[%emt 0:03:08]} 17. Nc1 {[%emt 0:06:32]} g5 {[%emt 0:01:13]} 18. Ne2 {[%emt 0:01:27]} h5 {[%emt 0:01:29]} 19. Nc3 {[%emt 0:04:28]} Rdg8 {[%emt 0:00:13]} 20. Nd5 {[%emt 0:02:18]} Bd8 {[%emt 0:00:38]} 21. Qf2 {[%emt 0:00:38]} Qd6 {[%emt 0:01:14]} 22. Be2 {[%emt 0:03:55]} g4 {[%emt 0:02:10]} 23. Rg2 {[%emt 0:00:02]} Rg7 {[%emt 0:03:25]} 24. Rh1 {[%emt 0:01:50]} Rhg8 {[%emt 0:00:30]} 25. Bd1 {[%emt 0:04:12]} g3 {[%emt 0:02:07]} 26. hxg3 {[%emt 0:00:22]} fxg3 {[%emt 0:01:42]} 27. Qg1 {[%emt 0:02:00]} h4 {[%emt 0:03:39]} 28. Rc2 {[%emt 0:01:01]} h3 {[%emt 0:00:49]} 29. b3 {[%emt 0:03:50]} g2 {[%emt 0:02:07]} 30. Rh2 {[%emt 0:00:37]} Bh4 {[%emt 0:01:23]} 31. a3 {[%emt 0:02:12]} Bg3 {[%emt 0:01:46]} 32. Rhxg2 {[%emt 0:00:42]} hxg2 {[%emt 0:00:14]} 33. Rxg2 {[%emt 0:00:03]} Bh2 {[%emt 0:00:44]} 34. Qxh2 {[%emt 0:01:13]} Rxg2 {[%emt 0:00:22]} 35. Qh7 {[%emt 0:00:24]} Bxd5 {[%emt 0:02:07]} 36. exd5 {[%emt 0:00:31]} Qg6 {[%emt 0:00:03]} 0-1

[Event "XII Sabadell Open 2019"]
[Site "Sabadell"]
[Date "2019.09.05"]
[Round "4.12"]
[White "Bedoya Rosales, Luis"]
[Black "Abreu Flores, Daniel"]
[Result "1/2-1/2"]
[ECO "C07"]
[WhiteElo "1918"]
[BlackElo "1905"]
[Annotator "NA"]
[PlyCount "52"]
[EventDate "2019.09.01"]
[EventCountry "ESP"]
[SourceTitle "playchess.com"]
[Source "ChessBase"]
[SourceQuality "1"]
[TimeControl "5400+30"]

1. e4 {[%emt 0:00:00]} e6 {[%emt 0:00:02]} 2. d4 {[%emt 0:00:00]} d5 {[%emt 0:00:04]} 3. Nd2 {[%emt 0:00:00]} c5 {[%emt 0:00:21]} 4. Ngf3 {[%emt 0:00:12]} cxd4 {[%emt 0:00:08]} 5. Nxd4 {[%emt 0:00:07]} Nf6 {[%emt 0:00:17]} 6. e5 {[%emt 0:06:33]} Nfd7 {[%emt 0:00:45]} 7. N2f3 {[%emt 0:06:08]} Nc6 {[%emt 0:03:10]} 8. Bb5 {[%emt 0:05:45]} Qc7 {[%emt 0:02:21]} 9. O-O {[%emt 0:09:35]} a6 {[%emt 0:12:47]} 10. Ba4 {[%emt 0:11:53]} Nc5 {[%emt 0:22:00]} 11. c4 {[%emt 0:13:07]} Nxa4 {[%emt 0:00:00]} 12. Qxa4 {[%emt 0:09:29]} Bd7 {[%emt 0:00:00]} 13. cxd5 {[%emt 0:02:01]} Nb4 {[%emt 0:09:34]} 14. Qb3 {[%emt 0:07:07]} Nxd5 {[%emt 0:03:10]} 15. Bd2 {[%emt 0:03:47]} Be7 {[%emt 0:18:29]} 16. Rfe1 {[%emt 0:12:30]} h6 {[%emt 0:08:21]} 17. Qd3 {[%emt 0:09:43]} Qb6 {[%emt 0:02:13]} 18. a3 {[%emt 0:00:00]} g5 {[%emt 0:00:00]} 19. h3 {[%emt 0:00:00]} O-O-O {[%emt 0:00:00]} 20. Qb3 {[%emt 0:01:27]} Rdg8 {[%emt 0:00:00]} 21. Qxb6 {[%emt 0:00:13]} Nxb6 {[%emt 0:00:00]} 22. Rac1+ {[%emt 0:00:15]} Kb8 {[%emt 0:00:00]} 23. Nh2 {[%emt 0:01:06]} h5 {[%emt 0:00:00]} 24. g3 {[%emt 0:00:30]} Nd5 {[%emt 0:00:00]} 25. Nf1 {[%emt 0:00:16]} Bd8 {[%emt 0:00:00]} 26. Ne3 {[%emt 0:00:39]} Nf4 {[%emt 0:14:25]} 1/2-1/2

[Event "XII Sabadell Open 2019"]
[Site "Sabadell"]
[Date "2019.09.05"]
[Round "4.13"]
[White "Tardio Fran, Emilio"]
[Black "Fernandez Aguilar, Francisco"]
[Result "0-1"]
[ECO "C58"]
[WhiteElo "1728"]
[BlackElo "2040"]
[Annotator "NA"]
[PlyCount "72"]
[EventDate "2019.09.01"]
[EventCountry "ESP"]
[SourceTitle "playchess.com"]
[Source "ChessBase"]
[SourceQuality "1"]
[TimeControl "5400+30"]

1. e4 {[%emt 0:01:40]} e5 {[%emt 0:00:21]} 2. Nf3 {[%emt 0:00:20]} Nc6 {[%emt 0:01:33]} 3. Bc4 {[%emt 0:00:15]} Nf6 {[%emt 0:00:14]} 4. Ng5 {[%emt 0:01:20]} d5 {[%emt 0:00:06]} 5. exd5 {[%emt 0:00:20]} Na5 {[%emt 0:00:07]} 6. Bb5+ {[%emt 0:00:28]} Bd7 {[%emt 0:00:06]} 7. Qe2 {[%emt 0:01:02]} Be7 {[%emt 0:00:07]} 8. Nc3 {[%emt 0:00:32]} Bxb5 {[%emt 0:00:33]} 9. Qxb5+ {[%emt 0:01:45]} c6 {[%emt 0:00:05]} 10. dxc6 {[%emt 0:00:50]} Nxc6 {[%emt 0:02:45]} 11. O-O {[%emt 0:00:26]} O-O {[%emt 0:04:13]} 12. Qe2 {[%emt 0:01:29]} Nd4 {[%emt 0:00:07]} 13. Qd1 {[%emt 0:00:33]} Rc8 {[%emt 0:00:05]} 14. Re1 {[%emt 0:04:22]} Nd5 {[%emt 0:02:12]} 15. Nf3 {[%emt 0:06:21]} Nb4 {[%emt 0:01:10]} 16. Rxe5 {[%emt 0:10:54]} Ndxc2 {[%emt 0:03:24]} 17. Rb1 {[%emt 0:01:00]} Bf6 {[%emt 0:11:27]} 18. a3 {[%emt 0:06:24]} Bxe5 {[%emt 0:02:37]} 19. axb4 {[%emt 0:08:59]} Bxc3 {[%emt 0:02:01]} 20. bxc3 {[%emt 0:02:11]} Rxc3 {[%emt 0:06:54]} 21. Bb2 {[%emt 0:09:51]} Rc8 {[%emt 0:09:43]} 22. Ne5 {[%emt 0:03:03]} Nd4 {[%emt 0:07:43]} 23. Qg4 {[%emt 0:00:18]} Ne6 {[%emt 0:00:27]} 24. f4 {[%emt 0:12:59]} f5 {[%emt 0:11:07]} 25. Qe2 {[%emt 0:00:07]} Qb6+ {[%emt 0:01:24]} 26. Kh1 {[%emt 0:01:11]} Qxb4 {[%emt 0:02:04]} 27. Nd3 {[%emt 0:00:45]} Qe4 {[%emt 0:02:06]} 28. Qf1 {[%emt 0:02:13]} Rfd8 {[%emt 0:00:28]} 29. Nf2 {[%emt 0:02:12]} Qxf4 {[%emt 0:00:34]} 30. Qe1 {[%emt 0:03:24]} Re8 {[%emt 0:02:40]} 31. Be5 {[%emt 0:02:16]} Qc4 {[%emt 0:03:05]} 32. Rxb7 {[%emt 0:01:05]} Qd5 {[%emt 0:01:08]} 33. Rb1 {[%emt 0:00:55]} Nf4 {[%emt 0:00:44]} 34. Bxf4 {[%emt 0:02:27]} Rxe1+ {[%emt 0:00:07]} 35. Rxe1 {[%emt 0:00:57]} Qe6 {[%emt 0:00:43]} 36. Be5 {[%emt 0:00:55]} Qxe5 {[%emt 0:00:15]} 0-1

[Event "XII Sabadell Open 2019"]
[Site "Sabadell"]
[Date "2019.09.05"]
[Round "4.14"]
[White "Borrellas Comellas, Josep"]
[Black "Ritter Aguilar, Jordi"]
[Result "1-0"]
[ECO "C45"]
[WhiteElo "1943"]
[BlackElo "1826"]
[Annotator "NA"]
[PlyCount "67"]
[EventDate "2019.09.01"]
[EventCountry "ESP"]
[SourceTitle "playchess.com"]
[Source "ChessBase"]
[SourceQuality "1"]
[TimeControl "5400+30"]

1. e4 {[%emt 0:00:00]} e5 {[%emt 0:00:12]} 2. Nf3 {[%emt 0:00:00]} Nc6 {[%emt 0:00:18]} 3. d4 {[%emt 0:00:32]} exd4 {[%emt 0:00:49]} 4. Nxd4 {[%emt 0:00:00]} Qh4 {[%emt 0:01:54]} 5. Nc3 {[%emt 0:00:00]} Bb4 {[%emt 0:01:40]} 6. Ndb5 {[%emt 0:04:59]} Ba5 {[%emt 0:02:39]} 7. Bd3 {[%emt 0:04:41]} Nge7 {[%emt 0:04:24]} 8. Bd2 {[%emt 0:05:57]} a6 {[%emt 0:01:57]} 9. Na3 {[%emt 0:00:10]} b5 {[%emt 0:11:12]} 10. Ne2 {[%emt 0:10:55]} Bxd2+ {[%emt 0:00:00]} 11. Qxd2 {[%emt 0:00:21]} Qf6 {[%emt 0:05:44]} 12. c3 {[%emt 0:01:54]} Ne5 {[%emt 0:00:00]} 13. O-O {[%emt 0:07:25]} O-O {[%emt 0:00:00]} 14. Rad1 {[%emt 0:03:45]} N7g6 {[%emt 0:01:12]} 15. f4 {[%emt 0:00:00]} Qb6+ {[%emt 0:07:46]} 16. Kh1 {[%emt 0:08:30]} Ng4 {[%emt 0:00:00]} 17. Nd4 {[%emt 0:00:27]} c5 {[%emt 0:07:38]} 18. Nf5 {[%emt 0:05:12]} Bb7 {[%emt 0:04:31]} 19. Be2 {[%emt 0:07:15]} Nf6 {[%emt 0:00:00]} 20. e5 {[%emt 0:05:04]} Nd5 {[%emt 0:00:04]} 21. c4 {[%emt 0:00:00]} Nc7 {[%emt 0:06:00]} 22. Qxd7 {[%emt 0:04:54]} Bc6 {[%emt 0:02:27]} 23. Qd3 {[%emt 0:03:18]} Ne6 {[%emt 0:01:43]} 24. Qe3 {[%emt 0:00:00]} Rad8 {[%emt 0:03:52]} 25. Nd6 {[%emt 0:01:40]} Nd4 {[%emt 0:01:04]} 26. cxb5 {[%emt 0:02:01]} axb5 {[%emt 0:00:06]} 27. Bd3 {[%emt 0:01:08]} Nh4 {[%emt 0:01:53]} 28. Rf2 {[%emt 0:11:48]} Rxd6 {[%emt 0:01:24]} 29. exd6 {[%emt 0:00:00]} Re8 {[%emt 0:01:57]} 30. Qh3 {[%emt 0:00:00]} Qd8 {[%emt 0:11:11]} 31. Nc2 {[%emt 0:00:00]} Bxg2+ {[%emt 0:03:48]} 32. Rxg2 {[%emt 0:00:00]} Nxc2 {[%emt 0:00:13]} 33. Rxc2 {[%emt 0:00:00]} c4 {[%emt 0:04:21]} 34. Bf1 {[%emt 0:02:03]} 1-0